fUST/lending_fUST_20250611
["ID","MTS","AMOUNT","RATE_DAILY","PERIOD"]
[365387590,1749641447569,-1745.0,0.00022829,3]
[365387591,1749641447579,-1745.0,0.00022829,3]
[365387592,1749641447590,-1745.0,0.00022829,3]
[365387593,1749641447600,-1745.0,0.00022829,3]
[365387594,1749641447610,-155.43081847,0.00022829,3]
[365387595,1749641447621,-1745.0,0.00022829,3]
[365387596,1749641447631,-1745.0,0.00022829,3]
[365387597,1749641447641,-1745.0,0.00022829,3]
[365387598,1749641447651,-1745.0,0.00022829,3]
[365387599,1749641447661,-1745.0,0.00022829,3]
[365387600,1749641447673,-1745.0,0.00022829,3]
[365387601,1749641447682,-1745.0,0.00022829,3]
[365387602,1749641447693,-1745.0,0.00022829,3]
[365387603,1749641447703,-1745.0,0.00022829,3]
[365387604,1749641447713,-1745.0,0.00022829,3]
[365387605,1749641447723,-1745.0,0.00022829,3]
[365387606,1749641447733,-1745.0,0.00022829,3]
[365387607,1749641447743,-151.0,0.00022829,3]
[365387608,1749641447754,-1030.1030757,0.00022829,3]
[365387609,1749641447764,-152.8942424,0.00022829,3]
[365387610,1749641447776,-317.0,0.00022829,3]
[365387611,1749641447789,-317.0,0.00022829,3]
[365387612,1749641447799,-317.0,0.00022829,3]
[365387613,1749641447809,-317.0,0.00022829,3]
[365387614,1749641447819,-317.0,0.00022829,3]
[365387615,1749641447829,-317.0,0.00022829,3]
[365387616,1749641447839,-317.0,0.00022829,3]
[365387617,1749641447848,-317.0,0.00022829,3]
[365387618,1749641447858,-317.0,0.00022829,3]
[365387619,1749641447869,-317.0,0.00022829,3]
[365387620,1749641447878,-322.24757634,0.00022829,3]
[365387621,1749641447888,-2477.5178819,0.00022831,8]
[365387622,1749641447898,-157.218033,0.00022833,2]
[365387623,1749641447908,-813.57,0.00022849,5]
[365387624,1749641447918,-151.0,0.00022869,7]
[365387625,1749641447928,-151.0,0.00022869,7]
[365387626,1749641447938,-151.0,0.00022869,7]
[365387627,1749641447948,-157.741413,0.00022869,7]
[365387628,1749641447958,-157.741413,0.00022869,7]
[365387629,1749641447968,-151.0,0.00022869,7]
[365387630,1749641447977,-151.0,0.00022869,7]
[365387631,1749641447988,-356.841237,0.00022869,7]
[365387632,1749641447998,-356.841237,0.00022869,7]
[365387633,1749641448008,-151.0,0.00022869,7]
[365387634,1749641448018,-151.0,0.00022869,7]
[365387635,1749641448030,-460.0,0.00022885,4]
[365387636,1749641448041,-151.0,0.00022886,7]
[365387637,1749641448051,-209.781369,0.00022886,7]
[365387638,1749641448061,-151.0,0.00022886,7]
[365387639,1749641448071,-151.0,0.00022886,7]
[365387640,1749641448082,-2844.956523,0.00022886,2]
[365387641,1749641448092,-1090.419237,0.00022886,7]
[365387642,1749641448102,-1090.419237,0.00022886,7]
[365387643,1749641448112,-152.624397,0.00022888,7]
[365387644,1749641448122,-159.24199,0.00022888,7]
[365387645,1749641448133,-151.0,0.00022888,7]
[365387646,1749641448144,-151.0,0.00022888,7]
[365387647,1749641448153,-387.98,0.00022898,3]
[365387648,1749641448163,-151.0,0.000229,8]
[365387649,1749641448174,-151.0,0.000229,10]
[365387650,1749641448186,-639.0,0.000229,2]
[365387651,1749641448196,-213.16534259,0.000229,3]
[365387652,1749641448206,-160.0,0.000229,3]
[365387653,1749641448218,-4605.42974714,0.000229,2]
[365387654,1749641448228,-813.57,0.00022949,5]
[365387655,1749641448238,-405.0,0.00022955,2]
[365387656,1749641448248,-405.0,0.00022955,2]
[365387657,1749641448259,-500.0,0.00022973,2]
[365387658,1749641448269,-501.29927995,0.00022973,2]
[365387659,1749641448280,-500.0,0.00022973,2]
[365387660,1749641448291,-500.0,0.00022973,2]
[365387661,1749641448301,-500.0,0.00022973,2]
[365387662,1749641448311,-500.0,0.00022973,2]
[365387663,1749641448321,-504.30310197,0.00022973,2]
[365387664,1749641448331,-212.26630749,0.00022973,2]
[365387665,1749641448342,-440.39440254,0.00022973,2]
[365387666,1749641448351,-500.0,0.00022973,2]
[365387667,1749641448361,-600.0,0.00022973,2]
[365387668,1749641448372,-500.0,0.00022973,2]
[365387669,1749641448382,-501.56200485,0.00022973,2]
[365387670,1749641448393,-547.46557668,0.00022973,2]
[365387671,1749641448402,-500.0,0.00022973,2]
[365387672,1749641448412,-500.0,0.00022973,2]
[365387673,1749641448423,-500.0,0.00022973,2]
[365387674,1749641448433,-500.0,0.00022973,2]
[365387675,1749641448443,-500.0,0.00022973,2]
[365387676,1749641448453,-501.81677955,0.00022973,2]
[365387677,1749641448464,-500.0,0.00022973,2]
[365387678,1749641448474,-503.11996169,0.00022973,2]
[365387679,1749641448487,-500.0,0.00022973,2]
[365387680,1749641448498,-500.53643659,0.00022973,2]
[365387681,1749641448508,-285.78694,0.00022973,7]
[365387682,1749641448518,-1439.445804,0.00022973,7]
[365387683,1749641448529,-151.0,0.00022973,7]
[365387684,1749641448539,-151.0,0.00022984,7]
[365387685,1749641448549,-259.953299,0.00022984,7]
[365387686,1749641448558,-259.953299,0.00022984,7]
[365387687,1749641448569,-151.0,0.00022984,7]
[365387688,1749641448579,-173.344042,0.00022984,7]
[365387689,1749641448588,-173.344042,0.00022984,7]
[365387690,1749641448597,-151.931106,0.00022986,7]
[365387691,1749641448607,-285.774678,0.00022986,7]
[365387692,1749641448616,-285.774678,0.00022986,7]
[365387693,1749641448626,-151.0,0.00022986,7]
[365387694,1749641448636,-151.0,0.00022989,7]
[365387695,1749641448645,-153.0,0.00022991,2]
[365387696,1749641448654,-153.0,0.00022991,2]
[365387697,1749641448665,-500.0,0.00022996,4]
[365387698,1749641448675,-500.0,0.00022996,4]
[365387699,1749641448684,-500.0,0.00022996,4]
[365387700,1749641448694,-500.0,0.00022996,4]
[365387701,1749641448704,-500.0,0.00022996,4]
[365387702,1749641448714,-500.0,0.00022996,4]
[365387703,1749641448724,-594.87317368,0.00022996,4]
[365387704,1749641448734,-151.0,0.00022996,7]
[365387705,1749641448743,-151.0,0.00022996,7]
[365387706,1749641448752,-157.741413,0.00022996,7]
[365387707,1749641448762,-157.741413,0.00022996,7]
[365387708,1749641448773,-151.0,0.00022996,7]
[365387709,1749641448782,-265.902008,0.00022996,7]
[365387710,1749641448792,-155.314783,0.00022999,7]
[365387711,1749641448802,-40268.99110181,0.00022999,2]
[365387712,1749641449475,-0.00500925,0.00021095,4]
[365387713,1749641449490,-459.99499075,0.00021095,4]
[365387714,1749641449499,-95.7398012,0.00021369,4]
[365387718,1749641616958,164.458426,0.00013699,2]
[365387722,1749641955702,1175.15,0.00017999,2]
[365387723,1749641955967,1175.15,0.00017999,2]
[365387724,1749641956213,1175.15,0.00017999,2]
[365387813,1749642632116,-300.0,0.00018167,2]
[365387815,1749642632125,-300.0,0.00018167,2]
[365387817,1749642632134,-953.57200768,0.00018168,2]
[365387820,1749642632157,-9490.15451912,0.00018168,2]
[365387822,1749642632166,-200.03128008,0.00018793,2]
[365387824,1749642632175,-410.178921,0.00018893,2]
[365387826,1749642632184,-669.58338957,0.000189,2]
[365387828,1749642632193,-2402.06162593,0.000189,2]
[365387830,1749642632202,-426.66814913,0.000189,2]
[365387832,1749642632211,-15777.04643045,0.000189,2]
[365387833,1749642632220,-1028.26,0.00018999,2]
[365387835,1749642632230,-1028.26,0.00018999,2]
[365387837,1749642632239,-1028.26,0.00018999,2]
[365387839,1749642632249,-68336.15689737,0.00019,3]
[365387841,1749642632258,-844.64040732,0.00019,3]
[365387843,1749642632268,-213.16534259,0.00019,3]
[365387845,1749642632278,-11860.25191276,0.00019,3]
[365387847,1749642632287,-1210.9021184,0.00019165,2]
[365387849,1749642632296,-200.56265063,0.00019507,3]
[365387851,1749642632305,-2402.06162591,0.00019757,2]
[365387852,1749642632314,-420.0,0.00019818,2]
[365387854,1749642632324,-420.0,0.00019818,2]
[365387855,1749642632333,-824.65991318,0.00019902,2]
[365387857,1749642632342,-426.66814911,0.00019946,2]
[365387858,1749642632353,-1028.26,0.00019999,2]
[365387860,1749642632362,-160.0,0.0002,3]
[365387862,1749642632371,-160.0,0.0002,3]
[365387864,1749642632381,-455.46,0.00020183,2]
[365387866,1749642632390,-164.458426,0.00020187,2]
[365387868,1749642632399,-1028.26,0.00020204,2]
[365387870,1749642632408,-23877.0114198,0.00020205,2]
[365387872,1749642632417,-255.0,0.0002021,2]
[365387874,1749642632425,-255.0,0.00020215,2]
[365387876,1749642632434,-255.0,0.0002022,2]
[365387878,1749642632443,-255.0,0.00020225,2]
[365387880,1749642632453,-255.0,0.0002023,2]
[365387882,1749642632462,-255.0,0.00020235,2]
[365387884,1749642632471,-394.2064641,0.0002024,2]
[365387886,1749642632480,-197.38,0.00020299,2]
[365387888,1749642632489,-1028.26,0.00020299,2]
[365387890,1749642632498,-2980.57800517,0.000203,3]
[365387892,1749642632507,-2980.57800506,0.000203,3]
[365387894,1749642632516,-2980.57800506,0.000203,3]
[365387896,1749642632526,-2980.57800506,0.000203,3]
[365387898,1749642632536,-2980.57800506,0.000203,3]
[365387900,1749642632545,-2980.57800506,0.000203,3]
[365387902,1749642632555,-160.0,0.00020348,3]
[365387904,1749642632564,-2980.57800506,0.00020348,3]
[365387906,1749642632573,-300.0,0.00020491,2]
[365387908,1749642632583,-151.0,0.000205,4]
[365387910,1749642632592,-545.8,0.00020547,2]
[365387912,1749642632601,-2980.57800506,0.0002059,3]
[365387914,1749642632610,-936.47,0.000206,2]
[365387916,1749642632619,-2402.06162591,0.00020614,2]
[365387918,1749642632629,-151.0,0.000207,4]
[365387920,1749642632638,-2980.57800506,0.00020831,4]
[365387922,1749642632648,-151.0,0.000209,3]
[365387924,1749642632657,-426.66814911,0.00020991,2]
[365387926,1749642632665,-10460.50597642,0.00020992,2]
[365387928,1749642632675,-2980.57800506,0.00021072,4]
[365387931,1749642632684,-616.81,0.00021085,3]
[365387933,1749642632693,-308.4,0.00021085,3]
[365387935,1749642632702,-154.2,0.00021085,3]
[365387936,1749642632711,-462.63,0.00021085,3]
[365387939,1749642632721,-776.0,0.00021085,3]
[365387941,1749642632730,-151.70355043,0.00021092,2]
[365387943,1749642632739,-1028.26,0.00021094,2]
[365387945,1749642632749,-1028.26,0.00021094,2]
[365387947,1749642632758,-460.0,0.00021095,4]
[365387949,1749642632767,-460.0,0.00021095,4]
[365387951,1749642632776,-206.50460099,0.00021095,4]
[365387953,1749642632787,-198.63848055,0.00021095,4]
[365387955,1749642632796,-460.0,0.00021095,4]
[365387956,1749642632806,-586.434,0.00021095,4]
[365387959,1749642632815,-460.0,0.00021095,4]
[365387961,1749642632825,-460.0,0.00021095,4]
[365387963,1749642632835,-310.0,0.00021095,4]
[365387965,1749642632844,-153.52,0.00021095,4]
[365387967,1749642632853,-460.0,0.00021095,4]
[365387968,1749642632863,-460.0,0.00021095,4]
[365387970,1749642632875,-303.60493372,0.00021095,4]
[365387972,1749642632885,-410.0,0.00021095,4]
[365387974,1749642632895,-399.45953224,0.00021095,4]
[365387976,1749642632904,-460.0,0.00021095,4]
[365387978,1749642632914,-267.15812344,0.00021095,4]
[365387980,1749642632923,-460.0,0.00021095,4]
[365387982,1749642632932,-460.0,0.00021095,4]
[365387984,1749642632941,-400.74454511,0.00021095,4]
[365387985,1749642632950,-428.09233646,0.00021095,4]
[365387986,1749642632962,-410.0,0.00021095,4]
[365387987,1749642632971,-430.0,0.00021095,4]
[365387988,1749642632980,-1942.92,0.00021095,4]
[365387989,1749642632990,-460.0,0.00021095,4]
[365387990,1749642632999,-460.0,0.00021095,4]
[365387991,1749642633009,-430.0,0.00021095,4]
[365387992,1749642633018,-350.0,0.00021095,4]
[365387993,1749642633027,-460.0,0.00021095,4]
[365387994,1749642633037,-460.0,0.00021095,4]
[365387995,1749642633048,-340.0,0.00021095,4]
[365387996,1749642633058,-162.48663862,0.00021095,4]
[365387997,1749642633068,-460.0,0.00021095,4]
[365387998,1749642633078,-420.0,0.00021095,4]
[365387999,1749642633088,-500.0,0.00021095,4]
[365388000,1749642633098,-460.0,0.00021095,4]
[365388001,1749642633108,-460.0,0.00021095,4]
[365388002,1749642633117,-460.0,0.00021095,4]
[365388003,1749642633128,-460.0,0.00021095,4]
[365388004,1749642633236,-905.12,0.00021095,4]
[365388005,1749642633247,-460.0,0.00021095,4]
[365388006,1749642633257,-460.0,0.00021095,4]
[365388007,1749642633267,-400.0,0.00021095,4]
[365388008,1749642633277,-400.0,0.00021095,4]
[365388009,1749642633287,-460.0,0.00021095,4]
[365388010,1749642633298,-460.0,0.00021095,4]
[365388011,1749642633307,-441.52746359,0.00021095,2]
[365388012,1749642633317,-460.0,0.00021095,4]
[365388013,1749642633327,-500.0,0.00021095,4]
[365388014,1749642633336,-460.0,0.00021095,4]
[365388015,1749642633346,-460.0,0.00021095,4]
[365388016,1749642633356,-460.0,0.00021095,4]
[365388017,1749642633365,-338.38865541,0.00021095,4]
[365388018,1749642633375,-460.0,0.00021095,4]
[365388019,1749642633385,-460.0,0.00021095,4]
[365388020,1749642633395,-400.0,0.00021095,4]
[365388021,1749642633404,-460.0,0.00021095,4]
[365388022,1749642633413,-557.8,0.00021095,4]
[365388023,1749642633423,-460.0,0.00021095,4]
[365388024,1749642633433,-460.0,0.00021095,4]
[365388025,1749642633443,-460.0,0.00021095,4]
[365388026,1749642633453,-460.0,0.00021095,4]
[365388027,1749642633462,-460.0,0.00021095,4]
[365388028,1749642633472,-460.0,0.00021095,4]
[365388029,1749642633482,-460.0,0.00021095,4]
[365388030,1749642633492,-420.0,0.00021095,4]
[365388031,1749642633502,-460.0,0.00021095,4]
[365388032,1749642633512,-460.0,0.00021095,2]
[365388033,1749642633521,-400.0,0.00021095,4]
[365388034,1749642633531,-460.0,0.00021095,4]
[365388035,1749642633541,-460.0,0.00021095,4]
[365388036,1749642633551,-460.0,0.00021095,4]
[365388037,1749642633561,-2694.74,0.00021095,4]
[365388038,1749642633571,-680.95,0.00021095,4]
[365388039,1749642633581,-460.0,0.00021095,4]
[365388040,1749642633590,-460.0,0.00021095,4]
[365388041,1749642633601,-460.0,0.00021095,4]
[365388042,1749642633611,-801.77,0.00021095,4]
[365388043,1749642633621,-460.0,0.00021095,4]
[365388044,1749642633631,-460.0,0.00021095,4]
[365388045,1749642633640,-1048.68,0.00021095,4]
[365388046,1749642633650,-460.0,0.00021095,4]
[365388047,1749642633660,-460.0,0.00021095,4]
[365388048,1749642633670,-460.0,0.00021095,4]
[365388049,1749642633680,-400.0,0.00021095,4]
[365388050,1749642633690,-460.0,0.00021095,4]
[365388051,1749642633699,-460.0,0.00021095,4]
[365388052,1749642633709,-420.0,0.00021095,4]
[365388053,1749642633718,-460.0,0.00021095,4]
[365388054,1749642633728,-460.0,0.00021095,4]
[365388055,1749642633738,-460.0,0.00021095,4]
[365388056,1749642633748,-460.0,0.00021095,4]
[365388057,1749642633758,-1857.09,0.00021095,4]
[365388058,1749642633767,-460.0,0.00021095,4]
[365388059,1749642633777,-237.46854865,0.00021095,4]
[365388060,1749642633787,-400.0,0.00021095,4]
[365388061,1749642633797,-1842.48,0.00021095,4]
[365388062,1749642633806,-460.0,0.00021095,4]
[365388063,1749642633815,-440.0,0.00021095,4]
[365388064,1749642633824,-420.0,0.00021095,4]
[365388065,1749642633835,-275.61790475,0.00021095,4]
[365388066,1749642633845,-460.0,0.00021095,4]
[365388067,1749642633854,-460.0,0.00021095,4]
[365388068,1749642633865,-460.0,0.00021095,4]
[365388069,1749642633878,-460.0,0.00021095,4]
[365388070,1749642633888,-1265.64,0.00021095,4]
[365388071,1749642633898,-460.0,0.00021095,4]
[365388072,1749642633908,-2341.33,0.00021095,4]
[365388073,1749642633918,-1540.56,0.00021095,4]
[365388074,1749642633928,-460.0,0.00021095,4]
[365388075,1749642633937,-460.0,0.00021095,4]
[365388076,1749642633948,-440.0,0.00021095,4]
[365388077,1749642633958,-460.0,0.00021095,4]
[365388078,1749642633968,-465.12809439,0.00021095,4]
[365388079,1749642633977,-460.0,0.00021095,4]
[365388080,1749642633987,-460.0,0.00021095,4]
[365388081,1749642633997,-460.0,0.00021095,4]
[365388082,1749642634007,-460.0,0.00021095,4]
[365388083,1749642634017,-1184.01,0.00021095,4]
[365388084,1749642634027,-460.0,0.00021095,4]
[365388085,1749642634038,-460.0,0.00021095,4]
[365388086,1749642634047,-460.0,0.00021095,4]
[365388087,1749642634058,-1722.6,0.00021095,4]
[365388088,1749642634068,-460.0,0.00021095,4]
[365388089,1749642634078,-460.0,0.00021095,4]
[365388090,1749642634088,-460.0,0.00021095,4]
[365388091,1749642634098,-460.0,0.00021095,4]
[365388092,1749642634109,-1869.72,0.00021095,4]
[365388093,1749642634118,-1007.48,0.00021095,4]
[365388094,1749642634128,-2742.08,0.00021095,4]
[365388095,1749642634137,-601.52,0.00021095,4]
[365388096,1749642634147,-460.0,0.00021095,4]
[365388097,1749642634157,-347.64132327,0.00021095,4]
[365388098,1749642634167,-757.79,0.00021095,4]
[365388099,1749642634177,-460.0,0.00021095,4]
[365388100,1749642634187,-997.82,0.00021095,4]
[365388101,1749642634197,-460.0,0.00021095,4]
[365388102,1749642634207,-460.0,0.00021095,4]
[365388103,1749642634217,-1176.56,0.00021095,4]
[365388104,1749642634228,-151.0,0.000211,3]
[365388105,1749642634237,-151.0,0.000211,4]
[365388106,1749642634247,-910.93,0.00021144,2]
[365388107,1749642634257,-1028.26,0.00021276,2]
[365388108,1749642634267,-151.0,0.000213,4]
[365388109,1749642634277,-151.0,0.000213,3]
[365388110,1749642634287,-2980.57800506,0.00021314,5]
[365388111,1749642634297,-10460.50597642,0.00021344,2]
[365388112,1749642634307,-1381.0,0.00021357,2]
[365388113,1749642634317,-1028.26,0.00021367,2]
[365388114,1749642634327,-1028.26,0.00021368,2]
[365388115,1749642634337,-460.0,0.00021369,4]
[365388116,1749642634347,-460.0,0.00021369,4]
[365388117,1749642634357,-419.26458333,0.00021369,4]
[365388118,1749642634367,-460.0,0.00021369,4]
[365388119,1749642634378,-1942.92,0.00021369,4]
[365388120,1749642634388,-460.0,0.00021369,4]
[365388121,1749642634397,-310.0,0.00021369,4]
[365388122,1749642634407,-507.48787125,0.00021369,4]
[365388123,1749642634417,-460.0,0.00021369,4]
[365388124,1749642634427,-460.0,0.00021369,4]
[365388125,1749642634437,-400.0,0.00021369,4]
[365388126,1749642634447,-460.0,0.00021369,4]
[365388127,1749642634457,-905.12,0.00021369,4]
[365388128,1749642634466,-460.0,0.00021369,4]
[365388129,1749642634477,-460.0,0.00021369,4]
[365388130,1749642634486,-460.0,0.00021369,4]
[365388131,1749642634496,-460.0,0.00021369,4]
[365388132,1749642634506,-460.0,0.00021369,4]
[365388133,1749642634517,-557.8,0.00021369,4]
[365388134,1749642634527,-460.0,0.00021369,4]
[365388135,1749642634537,-440.0,0.00021369,4]
[365388136,1749642634548,-460.0,0.00021369,4]
[365388137,1749642634558,-460.0,0.00021369,4]
[365388138,1749642634568,-420.0,0.00021369,4]
[365388139,1749642634578,-460.0,0.00021369,4]
[365388140,1749642634588,-460.0,0.00021369,4]
[365388141,1749642634598,-460.0,0.00021369,4]
[365388142,1749642634607,-460.0,0.00021369,2]
[365388143,1749642634617,-193.32,0.00021369,4]
[365388144,1749642634627,-2694.74,0.00021369,4]
[365388145,1749642634637,-680.95,0.00021369,4]
[365388146,1749642634647,-460.0,0.00021369,4]
[365388147,1749642634657,-440.0,0.00021369,4]
[365388148,1749642634666,-460.0,0.00021369,4]
[365388149,1749642634676,-801.77,0.00021369,4]
[365388150,1749642634686,-440.0,0.00021369,4]
[365388151,1749642634696,-460.0,0.00021369,4]
[365388152,1749642634705,-1048.68,0.00021369,4]
[365388153,1749642634715,-577.1189379,0.00021369,4]
[365388154,1749642634725,-460.0,0.00021369,4]
[365388155,1749642634735,-390.0,0.00021369,4]
[365388156,1749642634744,-460.0,0.00021369,4]
[365388157,1749642634753,-460.0,0.00021369,4]
[365388158,1749642634763,-380.0,0.00021369,4]
[365388159,1749642634773,-460.0,0.00021369,4]
[365388160,1749642634783,-1857.09,0.00021369,4]
[365388161,1749642634793,-460.0,0.00021369,4]
[365388162,1749642634802,-1842.48,0.00021369,4]
[365388163,1749642634811,-460.0,0.00021369,4]
[365388164,1749642634821,-460.0,0.00021369,4]
[365388165,1749642634830,-1265.64,0.00021369,4]
[365388166,1749642634840,-2341.33,0.00021369,4]
[365388167,1749642634849,-1540.56,0.00021369,4]
[365388168,1749642634858,-460.0,0.00021369,4]
[365388169,1749642634870,-460.0,0.00021369,4]
[365388170,1749642634881,-460.0,0.00021369,4]
[365388171,1749642634890,-460.0,0.00021369,4]
[365388172,1749642634899,-460.0,0.00021369,4]
[365388173,1749642634908,-389.40865632,0.00021369,4]
[365388174,1749642634918,-1184.01,0.00021369,4]
[365388175,1749642634926,-460.0,0.00021369,4]
[365388176,1749642634936,-460.0,0.00021369,4]
[365388177,1749642634945,-1722.6,0.00021369,4]
[365388178,1749642634954,-460.0,0.00021369,4]
[365388179,1749642634963,-1869.72,0.00021369,4]
[365388180,1749642634972,-1007.48,0.00021369,4]
[365388181,1749642634981,-2742.08,0.00021369,4]
[365388182,1749642634991,-601.52,0.00021369,4]
[365388183,1749642635000,-757.79,0.00021369,4]
[365388184,1749642635009,-460.0,0.00021369,4]
[365388185,1749642635018,-460.0,0.00021369,4]
[365388186,1749642635027,-997.82,0.00021369,4]
[365388187,1749642635039,-460.0,0.00021369,4]
[365388188,1749642635048,-1176.56,0.00021369,4]
[365388189,1749642635058,-305.41130869,0.00021394,2]
[365388190,1749642635067,-500.0,0.00021437,2]
[365388191,1749642635076,-207.4,0.00021437,2]
[365388192,1749642635085,-151.0,0.00021437,2]
[365388193,1749642635095,-151.70252757,0.00021437,2]
[365388194,1749642635104,-500.0,0.00021437,2]
[365388195,1749642635113,-500.0,0.00021437,2]
[365388196,1749642635122,-500.0,0.00021437,2]
[365388197,1749642635131,-1688.0,0.00021437,2]
[365388198,1749642635140,-500.0,0.00021437,2]
[365388199,1749642635150,-151.0,0.00021437,2]
[365388200,1749642635159,-500.0,0.00021437,2]
[365388201,1749642635168,-500.0,0.00021437,2]
[365388202,1749642635178,-151.0,0.00021437,2]
[365388203,1749642635188,-500.0,0.00021437,2]
[365388204,1749642635198,-151.0,0.00021437,2]
[365388205,1749642635208,-500.0,0.00021437,2]
[365388206,1749642635218,-500.0,0.00021437,2]
[365388207,1749642635228,-500.0,0.00021437,2]
[365388208,1749642635237,-151.0,0.00021437,2]
[365388209,1749642635247,-500.0,0.00021437,2]
[365388210,1749642635256,-500.0,0.00021437,2]
[365388211,1749642635267,-151.0,0.00021437,2]
[365388212,1749642635276,-5000.0,0.00021437,2]
[365388213,1749642635372,-500.0,0.00021437,2]
[365388214,1749642635382,-1250.0,0.00021437,2]
[365388215,1749642635391,-500.0,0.00021437,2]
[365388216,1749642635400,-151.0,0.00021437,2]
[365388217,1749642635409,-500.0,0.00021437,2]
[365388218,1749642635418,-1250.0,0.00021437,2]
[365388219,1749642635427,-156.10376169,0.00021437,2]
[365388220,1749642635436,-151.0,0.00021437,2]
[365388221,1749642635445,-500.0,0.00021437,2]
[365388222,1749642635454,-1250.0,0.00021437,2]
[365388223,1749642635463,-151.0,0.00021437,2]
[365388224,1749642635472,-500.0,0.00021437,2]
[365388225,1749642635481,-1250.0,0.00021437,2]
[365388226,1749642635491,-151.0,0.00021437,2]
[365388227,1749642635500,-500.0,0.00021437,2]
[365388228,1749642635509,-1250.0,0.00021437,2]
[365388229,1749642635518,-151.0,0.00021437,2]
[365388230,1749642635527,-500.0,0.00021437,2]
[365388231,1749642635537,-151.0,0.00021437,2]
[365388232,1749642635546,-1250.0,0.00021437,2]
[365388233,1749642635556,-500.0,0.00021437,2]
[365388234,1749642635565,-151.0,0.00021437,2]
[365388235,1749642635575,-1250.0,0.00021437,2]
[365388236,1749642635584,-500.0,0.00021437,2]
[365388237,1749642635593,-151.0,0.00021437,2]
[365388238,1749642635602,-1250.0,0.00021437,2]
[365388239,1749642635612,-500.0,0.00021437,2]
[365388240,1749642635621,-170.69580346,0.00021437,2]
[365388241,1749642635630,-500.0,0.00021437,2]
[365388242,1749642635639,-1250.0,0.00021437,2]
[365388243,1749642635648,-1250.0,0.00021437,2]
[365388244,1749642635657,-500.0,0.00021437,2]
[365388245,1749642635666,-1250.0,0.00021437,2]
[365388246,1749642635676,-1250.0,0.00021437,2]
[365388247,1749642635684,-1250.0,0.00021437,2]
[365388248,1749642635694,-1250.0,0.00021437,2]
[365388249,1749642635703,-1250.0,0.00021437,2]
[365388250,1749642635712,-2402.06162591,0.00021471,2]
[365388251,1749642635721,-500.46919816,0.00021491,2]
[365388252,1749642635730,-1750.456,0.00021492,2]
[365388253,1749642635740,-151.0,0.000215,4]
[365388254,1749642635750,-151.0,0.000215,3]
[365388255,1749642635759,-500.0,0.00021506,2]
[365388256,1749642635770,-500.0,0.00021506,2]
[365388257,1749642635779,-500.0,0.00021506,2]
[365388258,1749642635789,-500.0,0.00021506,2]
[365388259,1749642635798,-500.0,0.00021506,2]
[365388260,1749642635808,-500.0,0.00021506,2]
[365388261,1749642635817,-258.57334652,0.00021506,2]
[365388262,1749642635826,-500.0,0.00021506,2]
[365388263,1749642635836,-500.0,0.00021506,2]
[365388264,1749642635845,-323.10399459,0.00021506,2]
[365388265,1749642635856,-500.22395642,0.00021506,2]
[365388266,1749642635865,-500.0,0.00021513,2]
[365388267,1749642635878,-277.17736747,0.00021513,2]